fUSD/lending_fUSD_20250620
["ID","MTS","AMOUNT","RATE_DAILY","PERIOD"]
[366755184,1750433440106,-560.04,0.00026713,4]
[366755186,1750433440116,-535.42,0.00026713,4]
[366755188,1750433440126,-490.0,0.00026713,4]
[366755190,1750433440135,-490.17,0.00026713,4]
[366755192,1750433440146,-1396.11,0.00026713,4]
[366755194,1750433440156,-490.0,0.00026713,4]
[366755197,1750433440165,-490.0,0.00026713,4]
[366755199,1750433440175,-490.0,0.00026713,4]
[366755201,1750433440186,-490.0,0.00026713,4]
[366755203,1750433440197,-490.0,0.00026713,4]
[366755205,1750433440206,-490.0,0.00026713,4]
[366755207,1750433440216,-817.66,0.00026713,4]
[366755209,1750433440226,-490.0,0.00026713,4]
[366755211,1750433440236,-574.43,0.00026713,4]
[366755213,1750433440246,-490.0,0.00026713,4]
[366755215,1750433440256,-507.36,0.00026713,4]
[366755217,1750433440266,-10785.29,0.00026713,4]
[366755219,1750433440278,-638.45,0.00026713,4]
[366755221,1750433440288,-634.94,0.00026713,4]
[366755223,1750433440297,-490.0,0.00026713,4]
[366755225,1750433440307,-490.0,0.00026713,4]
[366755227,1750433440316,-281.19226098,0.00026713,4]
[366755229,1750433440326,-1917.56,0.00026713,4]
[366755231,1750433440336,-1596.08,0.00026713,4]
[366755233,1750433440346,-490.0,0.00026713,4]
[366755235,1750433440356,-490.0,0.00026713,4]
[366755237,1750433440366,-490.0,0.00026713,4]
[366755239,1750433440376,-626.99,0.00026713,4]
[366755240,1750433440386,-623.97120253,0.00026713,4]
[366755242,1750433440401,-665.10879747,0.00026713,4]
[366755244,1750433440411,-181.05034969,0.00026713,4]
[366755312,1750433440786,-490.0,0.00026711,4]
[366755315,1750433440798,-714.06,0.00026712,4]
[366755318,1750433440809,-247.65016766,0.00026713,4]
[366755331,1750433440864,-61.29948265,0.00026713,4]
[366755333,1750433440874,-477.11198575,0.00026713,4]
[366755336,1750433440886,-12.88801425,0.00026713,4]
[366755338,1750433440896,-577.48,0.00026713,4]
[366755340,1750433440906,-490.0,0.00026713,4]
[366755342,1750433440915,-656.71,0.00026713,4]
[366755344,1750433440926,-490.0,0.00026713,4]
[366755347,1750433440935,-382.62198575,0.00026713,4]
[366755350,1750433440947,-983.67801425,0.00026713,4]
[366755353,1750433440957,-490.0,0.00026713,4]
[366755355,1750433440967,-1144.52,0.00026713,4]
[366755357,1750433440976,-509.20198575,0.00026713,4]
[366755477,1750433441817,-693.00638666,0.00026713,4]
[366755479,1750433441828,-1654.62162759,0.00026713,4]
[366755481,1750433441838,-695.51,0.00026713,4]
[366755483,1750433441847,-632.33,0.00026713,4]
[366755485,1750433441857,-607.32,0.00026713,4]
[366755487,1750433441868,-492.66,0.00026713,4]
[366755489,1750433441877,-46.19824124,0.00026713,4]
[366755491,1750433441889,-606.93175876,0.00026713,4]
[366755493,1750433441898,-490.0,0.00026713,4]
[366755495,1750433441908,-490.0,0.00026713,4]
[366755497,1750433441917,-289.13231575,0.00026713,4]
[366755499,1750433441929,-200.86768425,0.00026713,4]
[366755502,1750433441939,-633.15907347,0.00026713,4]
[366755504,1750433441948,-625.93,0.00026713,4]
[366755506,1750433441959,-490.0,0.00026713,4]
[366755508,1750433441968,-3230.60831104,0.00026713,4]
[366755510,1750433441980,-96.17168896,0.00026713,4]
[366755512,1750433441989,-490.0,0.00026713,4]
[366755514,1750433442000,-1986.04,0.00026713,4]
[366755516,1750433442012,-490.0,0.00026713,4]
[366755518,1750433442022,-681.77,0.00026713,4]
[366755520,1750433442031,-490.0,0.00026713,4]
[366755522,1750433442040,-490.0,0.00026713,4]
[366755524,1750433442051,-513.65,0.00026713,4]
[366755526,1750433442061,-533.27,0.00026713,4]
[366755528,1750433442070,-490.0,0.00026713,4]
[366755530,1750433442081,-561.49,0.00026713,4]
[366755531,1750433442090,-490.0,0.00026713,4]
[366755533,1750433442100,-490.0,0.00026713,4]
[366755535,1750433442109,-2494.43,0.00026713,4]
[366755537,1750433442119,-567.39,0.00026713,4]
[366755540,1750433442130,-901.37,0.00026713,4]
[366755542,1750433442140,-499.37,0.00026713,4]
[366755544,1750433442150,-490.0,0.00026714,4]
[366755546,1750433442159,-490.0,0.00026714,4]
[366755548,1750433442169,-490.0,0.00026714,4]
[366755550,1750433442179,-490.0,0.00026714,4]
[366755552,1750433442189,-490.0,0.00026714,4]
[366755554,1750433442199,-490.0,0.00026714,4]
[366755556,1750433442208,-646.69,0.00026714,4]
[366755558,1750433442218,-490.0,0.00026714,4]
[366755560,1750433442229,-490.0,0.00026714,4]
[366755562,1750433442238,-490.0,0.00026714,4]
[366755564,1750433442247,-490.0,0.00026714,4]
[366755566,1750433442257,-780.11,0.00026714,4]
[366755568,1750433442266,-490.0,0.00026714,4]
[366755570,1750433442276,-490.0,0.00026714,4]
[366755572,1750433442285,-490.0,0.00026714,4]
[366755574,1750433442294,-490.0,0.00026714,4]
[366755576,1750433442305,-490.0,0.00026714,4]
[366755578,1750433442314,-490.0,0.00026714,4]
[366755580,1750433442324,-490.0,0.00026714,4]
[366755582,1750433442333,-490.0,0.00026714,4]
[366755584,1750433442343,-490.0,0.00026714,4]
[366755586,1750433442353,-490.0,0.00026714,4]
[366755588,1750433442362,-490.0,0.00026714,4]
[366755590,1750433442371,-490.0,0.00026714,4]
[366755592,1750433442381,-490.0,0.00026714,4]
[366755594,1750433442390,-490.0,0.00026714,4]
[366755596,1750433442399,-490.0,0.00026714,4]
[366755598,1750433442409,-490.0,0.00026714,4]
[366755600,1750433442418,-542.86,0.00026714,4]
[366755602,1750433442428,-490.0,0.00026714,4]
[366755604,1750433442437,-490.0,0.00026714,4]
[366755606,1750433442446,-799.22,0.00026714,4]
[366755608,1750433442456,-633.38,0.00026714,4]
[366755610,1750433442465,-1516.95,0.00026714,4]
[366755612,1750433442475,-490.0,0.00026714,4]
[366755614,1750433442484,-490.0,0.00026714,4]
[366755616,1750433442494,-941.85,0.00026714,4]
[366755618,1750433442504,-490.0,0.00026714,4]
[366755620,1750433442514,-490.0,0.00026714,4]
[366755621,1750433442523,-340.45967322,0.00026714,4]
[366755624,1750433442536,-149.54032678,0.00026714,4]
[366755626,1750433442546,-490.0,0.00026714,4]
[366755628,1750433442556,-490.0,0.00026714,4]
[366755630,1750433442567,-490.0,0.00026714,4]
[366755632,1750433442577,-161.59667822,0.00026714,4]
[366755634,1750433442589,-453.00332178,0.00026714,4]
[366755636,1750433442599,-490.0,0.00026714,4]
[366755638,1750433442609,-420.68502751,0.00026714,4]
[366755640,1750433442621,-69.31497249,0.00026714,4]
[366755642,1750433442632,-490.0,0.00026714,4]
[366755644,1750433442641,-490.0,0.00026714,4]
[366755646,1750433442650,-490.0,0.00026714,4]
[366755648,1750433442660,-490.0,0.00026714,4]
[366755650,1750433442670,-762.89,0.00026714,4]
[366755652,1750433442679,-490.0,0.00026714,4]
[366755654,1750433442689,-490.0,0.00026714,4]
[366755656,1750433442698,-490.0,0.00026714,4]
[366755658,1750433442707,-582.0,0.00026714,4]
[366755660,1750433442718,-490.0,0.00026714,4]
[366755662,1750433442727,-490.0,0.00026714,4]
[366755664,1750433442736,-282.07304132,0.00026714,4]
[366755666,1750433442748,-207.92695868,0.00026714,4]
[366755668,1750433442757,-604.98,0.00026714,4]
[366755670,1750433442767,-490.0,0.00026714,4]
[366755672,1750433442776,-490.0,0.00026714,4]
[366755674,1750433442786,-490.0,0.00026714,4]
[366755676,1750433442795,-490.0,0.00026714,4]
[366755678,1750433442806,-490.0,0.00026714,4]
[366755680,1750433442816,-490.0,0.00026714,4]
[366755682,1750433442826,-552.14,0.00026714,4]
[366755684,1750433442835,-490.0,0.00026714,4]
[366755686,1750433442845,-787.72,0.00026714,4]
[366755688,1750433442855,-503.4,0.00026714,4]
[366755690,1750433442864,-599.16,0.00026714,4]
[366755692,1750433442874,-947.92,0.00026714,4]
[366755694,1750433442884,-573.1,0.00026714,4]
[366755696,1750433442894,-490.0,0.00026714,4]
[366755698,1750433442903,-14.36521044,0.00026714,4]
[366755702,1750433442927,-580.97580167,0.00026711,4]
[366755940,1750433445469,-171.23,0.00026219,2]
[366755942,1750433445479,-490.0,0.00026702,2]
[366755944,1750433445489,-490.0,0.0002671,4]
[366755946,1750433445499,-490.0,0.0002671,4]
[366755948,1750433445509,-1159.1265772,0.00026711,4]
[366756019,1750433446211,-748.25762113,0.00026711,4]
[366756021,1750433446221,-490.0,0.00026713,4]
[366756023,1750433446231,-564.67902048,0.00026713,4]
[366756025,1750433446244,-3244.34500003,0.00026713,4]
[366756027,1750433446256,-916.30597949,0.00026713,4]
[366756029,1750433446266,-475.63478956,0.00026714,4]
[366756031,1750433446275,-490.0,0.00026714,4]
[366756033,1750433446286,-626.83130537,0.00026714,4]
[366756068,1750433446651,-497.11869463,0.00026714,4]
[366756070,1750433446661,-490.0,0.00026714,4]
[366756072,1750433446672,-530.09,0.00026714,4]
[366756074,1750433446682,-490.0,0.00026714,4]
[366756076,1750433446692,-490.0,0.00026714,4]
[366756078,1750433446702,-490.0,0.00026714,4]
[366756079,1750433446712,-490.0,0.00026714,4]
[366756081,1750433446725,-681.84,0.00026714,4]
[366756083,1750433446739,-490.0,0.00026714,4]
[366756085,1750433446749,-767.65,0.00026714,4]
[366756087,1750433446759,-490.0,0.00026714,4]
[366756089,1750433446768,-543.63,0.00026714,4]
[366756091,1750433446778,-490.0,0.00026714,4]
[366756093,1750433446788,-566.67,0.00026714,4]
[366756095,1750433446797,-490.0,0.00026714,4]
[366756097,1750433446811,-860.35980684,0.0002674,2]
[366756099,1750433446822,-1720.71961368,0.00026748,2]
[366756101,1750433446831,-3500.0,0.0002675,2]
[366756103,1750433446841,-490.0,0.00026758,4]
[366756105,1750433446851,-3.93565609,0.00026758,4]
[366756107,1750433446863,-486.06434391,0.00026758,4]
[366756109,1750433446873,-490.0,0.00026758,4]
[366756111,1750433446883,-491.31692966,0.00026758,4]
[366756134,1750433447115,-490.0,0.00026758,4]
[366756136,1750433447126,-490.0,0.00026758,4]
[366756138,1750433447136,-206.30872641,0.00026758,4]
[366756140,1750433447149,-283.69127359,0.00026758,4]
[366756143,1750433447159,-490.0,0.00026758,4]
[366756144,1750433447168,-19.54889615,0.00026758,4]
[366756147,1750433447180,-313.68898,0.00026758,4]
[366756149,1750433447191,-156.76212385,0.00026758,4]
[366756151,1750433447201,-108.86787615,0.00026758,4]
[366756153,1750433447213,-419.52212385,0.00026758,4]
[366756155,1750433447223,-490.0,0.00026758,4]
[366756157,1750433447232,-490.0,0.00026758,4]
[366756159,1750433447242,-127.25291778,0.00026758,4]
[366756161,1750433447254,-567.76708222,0.00026758,4]
[366756163,1750433447263,-490.0,0.00026758,4]
[366756165,1750433447273,-359.79735653,0.00026758,4]
[366756167,1750433447285,-130.20264347,0.00026758,4]
[366756169,1750433447295,-414.29735653,0.00026758,4]
[366756172,1750433447313,-85.70264347,0.00026758,4]
[366756174,1750433447325,-696.67,0.00026758,4]
[366756176,1750433447335,-1833.74,0.00026758,4]
[366756178,1750433447345,-490.0,0.00026758,4]
[366756180,1750433447355,-973.95,0.00026758,4]
[366756182,1750433447365,-490.0,0.00026758,4]
[366756184,1750433447374,-490.0,0.00026758,4]
[366756186,1750433447383,-1335.41,0.00026758,4]
[366756187,1750433447393,-490.0,0.00026758,4]
[366756189,1750433447403,-771.18,0.00026758,4]
[366756191,1750433447412,-521.71,0.00026758,4]
[366756193,1750433447422,-860.35980684,0.00026763,2]
[366756195,1750433447432,-439.12149052,0.00026773,2]
[366756197,1750433447443,-500.0,0.00026773,2]
[366756199,1750433447453,-500.0,0.00026773,2]
[366756201,1750433447463,-503.88695915,0.00026773,2]
[366756202,1750433447473,-500.0,0.00026773,2]
[366756203,1750433447483,-500.0,0.00026773,2]
[366756204,1750433447493,-500.0,0.00026773,2]
[366756205,1750433447503,-372.75132127,0.00026774,2]
[366756206,1750433447512,-4301.7990342,0.00026791,2]
[366756207,1750433447522,-1455.98257861,0.00026797,15]
[366756208,1750433447532,-711.45,0.000268,2]
[366756209,1750433447542,-2000.0,0.000268,9]
[366756210,1750433447553,-490.0,0.00026801,4]
[366756211,1750433447563,-250.0,0.00026801,4]
[366756212,1750433447572,-104.12508741,0.00026801,4]
[366756213,1750433447585,-385.87491259,0.00026801,4]
[366756214,1750433447596,-490.0,0.00026801,4]
[366756215,1750433447606,-490.0,0.00026801,4]
[366756216,1750433447616,-490.0,0.00026801,4]
[366756217,1750433447626,-490.0,0.00026801,4]
[366756218,1750433447636,-490.0,0.00026801,4]
[366756220,1750433447647,-490.0,0.00026801,4]
[366756222,1750433447657,-490.0,0.00026801,4]
[366756224,1750433447667,-490.0,0.00026801,4]
[366756226,1750433447677,-490.0,0.00026801,4]
[366756228,1750433447687,-432.86988741,0.00026801,4]
[366756232,1750433447712,-57.13011259,0.00026801,4]
[366756234,1750433447722,-490.0,0.00026801,4]
[366756236,1750433447733,-490.0,0.00026801,4]
[366756238,1750433447743,-490.0,0.00026801,4]
[366756240,1750433447754,-282.61754154,0.00026801,4]
[366756242,1750433447764,-490.0,0.00026801,4]
[366756244,1750433447774,-490.0,0.00026801,4]
[366756246,1750433447784,-448.90754408,0.00026801,4]
[366756248,1750433447794,-490.0,0.00026801,4]
[366756250,1750433447804,-508.29063795,0.00026801,4]
[366756252,1750433447814,-490.0,0.00026801,4]
[366756254,1750433447823,-490.0,0.00026801,4]
[366756256,1750433447833,-540.83,0.00026801,4]
[366756258,1750433447842,-490.0,0.00026801,4]
[366756260,1750433447852,-490.0,0.00026801,4]
[366756262,1750433447861,-214.35654919,0.00026801,4]
[366756264,1750433447870,-490.0,0.00026801,4]
[366756266,1750433447880,-490.0,0.00026801,4]
[366756268,1750433447889,-490.0,0.00026801,4]
[366756270,1750433447899,-490.0,0.00026801,4]
[366756272,1750433447909,-490.0,0.00026801,4]
[366756274,1750433447918,-490.0,0.00026801,4]
[366756275,1750433447929,-490.0,0.00026801,4]
[366756278,1750433447939,-490.0,0.00026801,4]
[366756279,1750433447949,-621.2,0.00026801,4]
[366756282,1750433447959,-490.0,0.00026801,4]
[366756284,1750433447969,-490.0,0.00026801,4]
[366756286,1750433447978,-490.0,0.00026801,4]
[366756287,1750433447988,-490.0,0.00026801,4]
[366756290,1750433447997,-574.08217026,0.00026801,4]
[366756292,1750433448012,-490.0,0.00026801,4]
[366756294,1750433448022,-490.0,0.00026801,4]
[366756296,1750433448031,-490.0,0.00026801,4]
[366756298,1750433448040,-490.0,0.00026801,4]
[366756300,1750433448053,-490.0,0.00026801,4]
[366756302,1750433448063,-490.0,0.00026801,4]
[366756304,1750433448073,-569.60553461,0.00026801,4]
[366756305,1750433448083,-490.0,0.00026801,4]
[366756308,1750433448094,-505.96123828,0.00026801,4]
[366756309,1750433448104,-490.0,0.00026801,4]
[366756311,1750433448114,-490.0,0.00026801,4]
[366756313,1750433448123,-490.0,0.00026801,4]
[366756315,1750433448133,-490.0,0.00026801,4]
[366756317,1750433448143,-375.29480615,0.00026801,4]
[366756319,1750433448153,-490.0,0.00026801,4]
[366756321,1750433448164,-637.43861417,0.00026801,4]
[366756323,1750433448174,-490.0,0.00026801,4]
[366756325,1750433448183,-490.0,0.00026801,4]
[366756327,1750433448193,-490.0,0.00026801,4]
[366756329,1750433448204,-490.0,0.00026801,4]
[366756331,1750433448214,-759.75,0.00026801,4]
[366756333,1750433448223,-490.0,0.00026801,4]
[366756335,1750433448233,-490.0,0.00026801,4]
[366756337,1750433448245,-490.0,0.00026801,4]
[366756339,1750433448255,-490.0,0.00026801,4]
[366756341,1750433448264,-490.0,0.00026801,4]
[366756343,1750433448275,-490.0,0.00026801,4]
[366756345,1750433448284,-490.0,0.00026801,4]
[366756347,1750433448294,-490.0,0.00026801,4]
[366756349,1750433448304,-490.0,0.00026801,4]
[366756351,1750433448314,-490.0,0.00026801,4]
[366756353,1750433448324,-490.0,0.00026801,4]
[366756355,1750433448334,-490.0,0.00026801,4]
[366756357,1750433448345,-490.0,0.00026801,4]
[366756359,1750433448355,-490.0,0.00026801,4]
[366756361,1750433448365,-490.0,0.00026801,4]
[366756363,1750433448375,-523.66645435,0.00026801,4]
[366756365,1750433448385,-490.0,0.00026801,4]
[366756367,1750433448395,-490.0,0.00026801,4]
[366756369,1750433448405,-490.0,0.00026801,4]
[366756371,1750433448415,-490.0,0.00026801,4]
[366756373,1750433448424,-490.0,0.00026801,4]
[366756375,1750433448434,-490.0,0.00026801,4]
[366756377,1750433448444,-490.0,0.00026801,4]
[366756379,1750433448453,-490.0,0.00026801,4]
[366756381,1750433448463,-490.0,0.00026801,4]
[366756383,1750433448473,-490.0,0.00026801,4]
[366756385,1750433448482,-490.0,0.00026801,4]
[366756387,1750433448492,-490.0,0.00026801,4]
[366756389,1750433448502,-490.0,0.00026801,4]
[366756391,1750433448512,-490.0,0.00026801,4]
[366756393,1750433448522,-481.2090028,0.00026801,4]
[366756395,1750433448532,-490.0,0.00026801,4]
[366756397,1750433448542,-490.0,0.00026801,4]
[366756399,1750433448553,-383.65197136,0.00026801,4]
[366757709,1750433509670,160.91,0.00013699,2]
[366757786,1750434072204,202.0,0.0002253,2]
[366757793,1750434187974,151.0,0.00022987,2]
[366757794,1750434204643,151.0,0.00022873,2]
[366757796,1750434221410,151.0,0.00022763,2]
[366757798,1750434316194,153.88,0.00022623,2]
[366757803,1750434402106,-151.0,0.00023412,2]
[366757804,1750434402131,-151.0,0.0002396,2]
[366757805,1750434402157,-1500.0,0.00025386,2]
[366757806,1750434402181,-1628.35,0.00025447,2]
[366757807,1750434402205,-140.09059698,0.00025472,120]
[366757808,1750434432985,-173.78853943,0.00023233,2]
[366757813,1750434538785,160.91,0.00013699,2]
[366757817,1750434564479,-28.21146057,0.00023233,2]
[366757828,1750434632389,-202.0,0.00024984,4]
[366757829,1750434632399,-167.2,0.00025287,2]
[366757830,1750434632409,-250.0,0.00025289,2]
[366757831,1750434632419,-2497.929395,0.000253,2]
[366757832,1750434632498,-754.07223161,0.000253,2]
[366757833,1750434632510,-2192.80749363,0.000253,2]
[366757834,1750434632524,-938.25087976,0.000253,2]
[366757835,1750434632534,-37.67874621,0.00025303,120]
[366757836,1750434632587,-181.51125379,0.00025303,120]
[366757837,1750434632598,-3529.58484899,0.00025463,2]
[366757838,1750434632678,-8291.99906771,0.00025463,2]
[366757841,1750434632689,-1200.0,0.00025471,2]
[366757842,1750434632699,-1069.42940302,0.00025472,120]
[366757843,1750434632709,-600.0,0.00025479,2]
[366757844,1750434632720,-720.0,0.00025479,2]
[366757845,1750434632730,-864.0,0.00025479,2]
[366757846,1750434632740,-1036.0,0.00025479,2]
[366757847,1750434632750,-1244.0,0.00025479,2]
[366757848,1750434632760,-1492.0,0.00025479,2]
[366757849,1750434632770,-361.0,0.00025479,2]
[366757850,1750434632781,-26431.2094909,0.0002548,2]
[366757851,1750434632791,-1000.0,0.00025497,2]
[366757852,1750434632801,-150.51965284,0.00025507,2]
[366757853,1750434632811,-300.0,0.00025607,2]
[366757854,1750434632822,-1957.856,0.00025608,2]
[366757855,1750434632832,-207.4,0.00025608,2]
[366757856,1750434632842,-2030.296672,0.00025663,2]
[366757857,1750434632853,-2105.41764886,0.00025718,2]
[366757858,1750434632864,-165.97,0.00025772,2]
[366757859,1750434632878,-2183.31810187,0.00025773,2]
[366757860,1750434632888,-165.97,0.00025815,2]
[366757861,1750434632898,-2264.10087164,0.00025828,2]
[366757863,1750434632908,-165.97,0.00025858,2]
[366757865,1750434632919,-2347.87260389,0.00025883,2]
[366757867,1750434632929,-383.54,0.00025891,120]
[366757869,1750434632939,-165.97,0.00025901,2]
[366757871,1750434632949,-2434.74389024,0.00025938,2]
[366757873,1750434632960,-2524.82941417,0.00025993,2]
[366757875,1750434632969,-200.0,0.00026032,2]
[366757877,1750434632979,-300.0,0.00026047,2]
[366757879,1750434632990,-2618.2481025,0.00026048,2]
[366757881,1750434632999,-153.88,0.00026048,2]
[366757883,1750434633009,-188.62,0.00026078,2]
[366757885,1750434633020,-503.99003277,0.00026102,2]
[366757888,1750434633030,-503.75407807,0.00026102,2]
[366757891,1750434633043,-500.0,0.00026102,2]
[366757894,1750434633054,-500.0,0.00026102,2]
[366757896,1750434633064,-500.0,0.00026102,2]
[366757899,1750434633075,-500.0,0.00026102,2]
[366757902,1750434633085,-500.0,0.00026102,2]
[366757904,1750434633095,-500.0,0.00026102,2]
[366757906,1750434633105,-500.0,0.00026102,2]
[366757908,1750434633115,-500.0,0.00026102,2]
[366757910,1750434633125,-500.0,0.00026102,2]
[366757912,1750434633136,-500.0,0.00026102,2]
[366757914,1750434633146,-500.0,0.00026102,2]
[366757916,1750434633156,-500.0,0.00026102,2]
[366757918,1750434633171,-2715.12328229,0.00026103,2]
[366757920,1750434633182,-797.92,0.00026148,2]
[366757922,1750434633193,-461.86,0.00026148,2]
[366757925,1750434633204,-464.5,0.00026148,2]
[366757927,1750434633213,-2815.58284374,0.00026158,2]
[366757928,1750434633224,-2919.75940895,0.00026213,2]
[366757929,1750434633235,-3027.79050709,0.00026268,2]
[366757930,1750434633246,-3139.81875585,0.00026323,2]
[366757931,1750434633256,-3255.99204981,0.00026378,2]
[366757932,1750434633267,-2273.54513902,0.00026433,2]
[366757933,1750434633277,-813.369209,0.00026442,8]
[366757934,1750434633288,-151.0,0.00026445,2]
[366757935,1750434633299,-151.0,0.00026445,2]
[366757936,1750434633309,-153.88421641,0.00026445,2]
[366757937,1750434633319,-500.0,0.00026445,2]
[366757938,1750434633329,-500.0,0.00026445,2]
[366757939,1750434633339,-500.0,0.00026445,2]
[366757940,1750434633350,-500.0,0.00026445,2]
[366757941,1750434633361,-500.0,0.00026445,2]
[366757942,1750434633372,-500.0,0.00026445,2]
[366757943,1750434633383,-500.0,0.00026445,2]
[366757944,1750434633393,-500.0,0.00026445,2]
[366757945,1750434633404,-500.0,0.00026445,2]
[366757946,1750434633414,-500.0,0.00026445,2]
[366757947,1750434633424,-500.0,0.00026445,2]
[366757948,1750434633435,-500.0,0.00026445,2]
[366757949,1750434633445,-437.83457863,0.00026445,2]
[366757950,1750434633455,-606.85451761,0.00026445,2]
[366757951,1750434633465,-500.0,0.00026445,2]
[366757952,1750434633476,-500.0,0.00026445,2]
[366757953,1750434633486,-500.0,0.00026445,2]
[366757954,1750434633496,-500.0,0.00026445,2]
[366757955,1750434633507,-500.0,0.00026445,2]
[366757956,1750434633517,-500.0,0.00026445,2]
[366757957,1750434633531,-500.0,0.00026445,2]
[366757958,1750434633541,-500.0,0.00026445,2]
[366757959,1750434633551,-500.0,0.00026445,2]
[366757960,1750434633561,-500.0,0.00026445,2]
[366757961,1750434633574,-151.0,0.00026445,2]
[366757962,1750434633584,-500.0,0.00026445,2]
[366757963,1750434633595,-151.0,0.00026445,2]
[366757964,1750434633606,-500.0,0.00026445,2]
[366757965,1750434633630,-151.0,0.00026445,2]
[366757966,1750434633643,-500.0,0.00026445,2]
[366757967,1750434633653,-151.0,0.00026445,2]
[366757968,1750434633664,-500.0,0.00026445,2]
[366757969,1750434633675,-151.0,0.00026445,2]
[366757970,1750434633685,-151.0,0.00026445,2]
[366757971,1750434633695,-151.0,0.00026445,2]
[366757972,1750434633706,-151.0,0.00026445,2]
[366757973,1750434633717,-151.0,0.00026445,2]
[366757974,1750434633728,-151.0,0.00026445,2]
[366757975,1750434633739,-151.0,0.00026445,2]
[366757976,1750434633750,-151.0,0.00026445,2]
[366757977,1750434633761,-151.0,0.00026445,2]
[366757978,1750434633771,-151.0,0.00026445,2]
[366757979,1750434633782,-151.0,0.00026445,2]
[366757980,1750434633793,-252.17512863,0.00026445,2]
[366757981,1750434633804,-946.0,0.00026461,2]
[366757982,1750434633815,-3338.491,0.00026461,2]
[366757983,1750434633825,-803.0,0.00026461,2]
[366757984,1750434633836,-638.0,0.00026461,2]
[366757985,1750434633848,-300.657,0.00026461,2]
[366757986,1750434633859,-1161.0,0.00026461,2]
[366757987,1750434633871,-1278.0,0.00026461,2]
[366757988,1750434633883,-953.82,0.00026461,2]
[366757989,1750434633895,-591.0,0.00026461,2]
[366757990,1750434633906,-2004.0,0.00026461,2]
[366757991,1750434633917,-559.0,0.00026461,2]
[366757992,1750434633928,-1675.0,0.00026461,2]
[366757993,1750434633938,-7117.0,0.00026461,2]
[366757994,1750434633949,-4094.0,0.00026461,2]
[366757995,1750434633960,-885.0,0.00026461,2]
[366757996,1750434633971,-712.79082403,0.00026484,2]
[366757997,1750434633981,-151.0,0.000265,2]
[366757998,1750434633992,-168.0,0.00026506,2]
[366757999,1750434634003,-316.83862326,0.0002651,2]
[366758000,1750434634014,-168.0,0.00026547,2]
[366758001,1750434634023,-151.0,0.00026555,2]
[366758002,1750434634034,-316.83862307,0.00026573,2]
[366758003,1750434634044,-1000.0,0.00026599,2]
[366758004,1750434634055,-4903.59137312,0.00026602,2]
[366758005,1750434634065,-547.98701072,0.00026609,10]
[366758006,1750434634075,-4355.70389977,0.0002661,2]
[366758007,1750434634086,-159.85626994,0.0002661,2]
[366758008,1750434634097,-1500.0,0.0002661,2]
[366758009,1750434634107,-272.3229,0.0002661,2]
[366758010,1750434634117,-516.9595,0.0002661,2]
[366758011,1750434634127,-5000.0,0.0002661,2]
[366758012,1750434634138,-151.0,0.0002661,2]
[366758013,1750434634148,-484.0382,0.00026611,2]
[366758014,1750434634158,-500.0,0.00026611,2]
[366758015,1750434634169,-846.2852,0.00026611,2]
[366758016,1750434634180,-1000.0,0.00026611,2]